[Event "Early-Titled-Tuesday-Blitz-February-13-2024"]
[Site "Chess.com"]
[Date "2024.02.13"]
[Round "1"]
[White "stasOR4ik"]
[Black "AlexPapasimakopoulos"]
[Result "0-1"]
[WhiteElo "2406"]
[BlackElo "2733"]
[TimeControl "180+1"]
[EndTime "8:07:40 PST"]
[Termination "AlexPapasimakopoulos won by resignation"]

1. e4 {[%clk 0:02:16.7]} 1... e6 {[%clk 0:02:57]} 2. b3 {[%clk 0:02:16]} 2... d5
{[%clk 0:02:54.2]} 3. Bb2 {[%clk 0:02:16.3]} 3... Nf6 {[%clk 0:02:53.1]} 4. e5
{[%clk 0:02:16.3]} 4... Nfd7 {[%clk 0:02:49.7]} 5. d4 {[%clk 0:02:16.7]} 5... c5
{[%clk 0:02:46.1]} 6. f4 {[%clk 0:02:05.5]} 6... cxd4 {[%clk 0:02:43.8]} 7. Bxd4
{[%clk 0:02:05.7]} 7... Nc6 {[%clk 0:02:43.8]} 8. Bb2 {[%clk 0:02:05.2]} 8...
Qb6 {[%clk 0:02:43.5]} 9. Nf3 {[%clk 0:02:03.9]} 9... Bc5 {[%clk 0:02:43.1]} 10.
Bd3 {[%clk 0:02:01.5]} 10... Nb4 {[%clk 0:02:27.7]} 11. Nc3 {[%clk 0:01:56.2]}
11... Nxd3+ {[%clk 0:02:14.2]} 12. Qxd3 {[%clk 0:01:57.1]} 12... a6 {[%clk
0:02:04.2]} 13. Na4 {[%clk 0:01:16.9]} 13... Qa5+ {[%clk 0:02:02.9]} 14. Bc3
{[%clk 0:00:54.3]} 14... Bb4 {[%clk 0:01:59.5]} 15. Qd2 {[%clk 0:00:54.6]} 15...
Bxc3 {[%clk 0:01:57.9]} 16. Qxc3 {[%clk 0:00:55.5]} 16... Qxc3+ {[%clk
0:01:54.5]} 17. Nxc3 {[%clk 0:00:56.4]} 17... b5 {[%clk 0:01:54.7]} 18. Nd4
{[%clk 0:00:53.9]} 18... Bb7 {[%clk 0:01:43.6]} 19. Kd2 {[%clk 0:00:47.4]} 19...
Ke7 {[%clk 0:01:43.2]} 20. Rhe1 {[%clk 0:00:45.4]} 20... g6 {[%clk 0:01:41]} 21.
Rac1 {[%clk 0:00:38.9]} 21... b4 {[%clk 0:01:38.7]} 22. Na4 {[%clk 0:00:36.3]}
22... Rhc8 {[%clk 0:01:36.9]} 23. c3 {[%clk 0:00:33.7]} 23... a5 {[%clk
0:01:27.1]} 24. cxb4 {[%clk 0:00:31.2]} 24... axb4 {[%clk 0:01:28]} 25. Rxc8
{[%clk 0:00:31.5]} 25... Rxc8 {[%clk 0:01:26.3]} 26. Rc1 {[%clk 0:00:31.9]}
26... Rxc1 {[%clk 0:01:16.6]} 27. Kxc1 {[%clk 0:00:32.8]} 27... Nb8 {[%clk
0:01:15.7]} 28. Nc5 {[%clk 0:00:26.6]} 28... Bc8 {[%clk 0:01:13.3]} 29. Nd3
{[%clk 0:00:24.3]} 29... f6 {[%clk 0:01:07.4]} 30. Nxb4 {[%clk 0:00:22.5]} 30...
fxe5 {[%clk 0:01:06.2]} 31. fxe5 {[%clk 0:00:23.1]} 31... Bb7 {[%clk 0:01:05.6]}
32. a4 {[%clk 0:00:20.3]} 32... Kd7 {[%clk 0:01:06]} 33. Kd2 {[%clk 0:00:19.8]}
33... Bc8 {[%clk 0:01:05.7]} 34. Kc3 {[%clk 0:00:19.5]} 34... Kc7 {[%clk
0:01:06.2]} 35. Nb5+ {[%clk 0:00:18.6]} 35... Kb6 {[%clk 0:01:04.3]} 36. Nd6
{[%clk 0:00:18.6]} 36... Bd7 {[%clk 0:01:04.8]} 37. Nc2 {[%clk 0:00:16.2]} 37...
Nc6 {[%clk 0:01:02.8]} 38. Nf7 {[%clk 0:00:15.7]} 38... Be8 {[%clk 0:01:02.5]}
39. Ng5 {[%clk 0:00:15.6]} 39... Bd7 {[%clk 0:00:58]} 40. Nxh7 {[%clk
0:00:15.5]} 40... Nxe5 {[%clk 0:00:58]} 41. Nd4 {[%clk 0:00:15.7]} 41... Ng4
{[%clk 0:00:56.4]} 42. h3 {[%clk 0:00:15.1]} 42... Ne3 {[%clk 0:00:56.6]} 43.
Nf8 {[%clk 0:00:14.9]} 43... Be8 {[%clk 0:00:50.7]} 44. Nfxe6 {[%clk 0:00:09.1]}
44... Nxg2 {[%clk 0:00:50.8]} 45. Nf3 {[%clk 0:00:07.4]} 45... Bd7 {[%clk
0:00:47.6]} 46. Nf4 {[%clk 0:00:07]} 46... Nxf4 {[%clk 0:00:46.9]} 47. Kd4
{[%clk 0:00:07.8]} 47... Nxh3 {[%clk 0:00:41]} 48. Kxd5 {[%clk 0:00:07.1]} 48...
Bc6+ {[%clk 0:00:41.3]} 49. Ke5 {[%clk 0:00:06.2]} 49... Bxf3 {[%clk 0:00:41.9]}
50. b4 {[%clk 0:00:06]} 50... Be2 {[%clk 0:00:41.4]} 51. Kf6 {[%clk 0:00:05.7]}
51... Bd3 {[%clk 0:00:41.1]} 52. Ke5 {[%clk 0:00:05]} 52... Nf2 {[%clk 0:00:40]}
53. Kf4 {[%clk 0:00:05.1]} 53... Bf5 {[%clk 0:00:39.9]} 54. Ke3 {[%clk
0:00:04.3]} 54... Nd3 {[%clk 0:00:39.4]} 55. b5 {[%clk 0:00:04.1]} 55... Nc5
{[%clk 0:00:39.9]} 56. a5+ {[%clk 0:00:03.6]} 0-1

[Event "Early-Titled-Tuesday-Blitz-February-13-2024"]
[Site "Chess.com"]
[Date "2024.02.13"]
[Round "1"]
[White "Kotlyar_K"]
[Black "campochess"]
[Result "1-0"]
[WhiteElo "2574"]
[BlackElo "2120"]
[TimeControl "180+1"]
[EndTime "8:07:41 PST"]
[Termination "Kotlyar_K won on time"]

1. e4 {[%clk 0:00:57.4]} 1... c5 {[%clk 0:02:57.3]} 2. Nf3 {[%clk 0:00:29.2]}
2... Nc6 {[%clk 0:02:56.2]} 3. Bb5 {[%clk 0:00:27.2]} 3... e5 {[%clk 0:02:54.5]}
4. O-O {[%clk 0:00:25.5]} 4... Bd6 {[%clk 0:02:53.5]} 5. c3 {[%clk 0:00:25.6]}
5... Nge7 {[%clk 0:02:53.2]} 6. Re1 {[%clk 0:00:21.9]} 6... O-O {[%clk
0:02:51.6]} 7. d4 {[%clk 0:00:18.4]} 7... Qc7 {[%clk 0:02:45.8]} 8. d5 {[%clk
0:00:16]} 8... Nd8 {[%clk 0:02:33.7]} 9. Nbd2 {[%clk 0:00:14.7]} 9... Kh8 {[%clk
0:02:22.8]} 10. Bf1 {[%clk 0:00:14.8]} 10... Ng8 {[%clk 0:02:21.8]} 11. Nc4
{[%clk 0:00:15]} 11... f6 {[%clk 0:02:15.2]} 12. Be3 {[%clk 0:00:11.9]} 12... b6
{[%clk 0:02:12.3]} 13. Rc1 {[%clk 0:00:11.6]} 13... Nf7 {[%clk 0:02:11]} 14. b4
{[%clk 0:00:11.4]} 14... Be7 {[%clk 0:02:06.7]} 15. Qd2 {[%clk 0:00:06.8]} 15...
d6 {[%clk 0:02:06.3]} 16. Red1 {[%clk 0:00:05.9]} 16... Bg4 {[%clk 0:02:04.3]}
17. Be2 {[%clk 0:00:05.8]} 17... f5 {[%clk 0:01:52.1]} 18. exf5 {[%clk
0:00:05.3]} 18... Bxf5 {[%clk 0:01:51.1]} 19. Na3 {[%clk 0:00:05.6]} 19... Nf6
{[%clk 0:01:43.2]} 20. Nb5 {[%clk 0:00:05.1]} 20... Qb8 {[%clk 0:01:41.9]} 21.
c4 {[%clk 0:00:05.5]} 21... a6 {[%clk 0:01:25.3]} 22. Na3 {[%clk 0:00:05.3]}
22... Ne4 {[%clk 0:01:16.4]} 23. Qe1 {[%clk 0:00:05.4]} 23... Bg6 {[%clk
0:01:13.5]} 24. Rb1 {[%clk 0:00:04.7]} 24... Qc8 {[%clk 0:01:08.5]} 25. bxc5
{[%clk 0:00:04.5]} 25... bxc5 {[%clk 0:01:06.8]} 26. Bd3 {[%clk 0:00:04.7]}
26... Qg4 {[%clk 0:00:45.5]} 27. Nc2 {[%clk 0:00:03.3]} 27... Nf6 {[%clk
0:00:38]} 28. h3 {[%clk 0:00:03.6]} 28... Qh5 {[%clk 0:00:31.9]} 29. Bxg6 {[%clk
0:00:04.1]} 29... Qxg6 {[%clk 0:00:31]} 30. Qe2 {[%clk 0:00:04.1]} 30... Nh5
{[%clk 0:00:19.8]} 31. Rb7 {[%clk 0:00:03.6]} 31... Bf6 {[%clk 0:00:13.7]} 32.
Nce1 {[%clk 0:00:03.9]} 32... Nf4 {[%clk 0:00:13]} 33. Bxf4 {[%clk 0:00:04.1]}
33... exf4 {[%clk 0:00:13.1]} 34. Qd3 {[%clk 0:00:04.7]} 34... Qh5 {[%clk
0:00:05.6]} 35. Qe4 {[%clk 0:00:04.5]} 35... Ne5 {[%clk 0:00:05.4]} 36. Nd3
{[%clk 0:00:04]} 1-0

[Event "Early-Titled-Tuesday-Blitz-February-13-2024"]
[Site "Chess.com"]
[Date "2024.02.13"]
[Round "1"]
[White "amylazy"]
[Black "TanitoluwaAps116"]
[Result "0-1"]
[WhiteElo "2437"]
[BlackElo "2789"]
[TimeControl "180+1"]
[EndTime "8:07:42 PST"]
[Termination "TanitoluwaAps116 won on time"]

1. d4 {[%clk 0:02:58.8]} 1... Nf6 {[%clk 0:02:56.9]} 2. Nf3 {[%clk 0:02:59.1]}
2... e6 {[%clk 0:02:52.3]} 3. Bf4 {[%clk 0:02:59.3]} 3... d5 {[%clk 0:02:52.1]}
4. e3 {[%clk 0:02:53.5]} 4... Bd6 {[%clk 0:02:52.2]} 5. Bg3 {[%clk 0:02:54]}
5... O-O {[%clk 0:02:50.4]} 6. Bd3 {[%clk 0:02:54.3]} 6... c5 {[%clk 0:02:50.3]}
7. c3 {[%clk 0:02:54.6]} 7... Qc7 {[%clk 0:02:50.3]} 8. Nbd2 {[%clk 0:02:54.5]}
8... Nbd7 {[%clk 0:02:49.6]} 9. Rc1 {[%clk 0:02:52.9]} 9... e5 {[%clk
0:02:46.8]} 10. dxe5 {[%clk 0:02:51.8]} 10... Nxe5 {[%clk 0:02:47.7]} 11. Nxe5
{[%clk 0:02:51.3]} 11... Bxe5 {[%clk 0:02:48.6]} 12. Nf3 {[%clk 0:02:51.5]}
12... Bxg3 {[%clk 0:02:42.9]} 13. hxg3 {[%clk 0:02:51.4]} 13... h6 {[%clk
0:02:42.9]} 14. Bb1 {[%clk 0:02:50.6]} 14... Bg4 {[%clk 0:02:39.1]} 15. Qc2
{[%clk 0:02:49.9]} 15... Rfe8 {[%clk 0:02:36]} 16. O-O {[%clk 0:02:45.9]} 16...
Rad8 {[%clk 0:02:33.6]} 17. Nh4 {[%clk 0:02:39.7]} 17... g6 {[%clk 0:02:25.5]}
18. Qa4 {[%clk 0:02:30]} 18... Kg7 {[%clk 0:02:22]} 19. b4 {[%clk 0:02:28.2]}
19... b6 {[%clk 0:02:15.7]} 20. bxc5 {[%clk 0:01:46.2]} 20... bxc5 {[%clk
0:02:16.6]} 21. Qc2 {[%clk 0:01:40.3]} 21... Qe5 {[%clk 0:02:13.4]} 22. Nxg6
{[%clk 0:01:36]} 22... fxg6 {[%clk 0:02:08.9]} 23. Qxg6+ {[%clk 0:01:36.9]}
23... Kf8 {[%clk 0:02:06.3]} 24. Qxh6+ {[%clk 0:01:36.3]} 24... Ke7 {[%clk
0:02:02.5]} 25. Qg7+ {[%clk 0:01:15.6]} 25... Ke6 {[%clk 0:02:02.3]} 26. c4
{[%clk 0:01:04.2]} 26... Re7 {[%clk 0:01:41.2]} 27. cxd5+ {[%clk 0:01:03.6]}
27... Kd7 {[%clk 0:01:15.5]} 28. Qg6 {[%clk 0:01:00.3]} 28... Rh8 {[%clk
0:01:13.3]} 29. Rfe1 {[%clk 0:00:28.7]} 29... Reh7 {[%clk 0:01:11]} 30. f3
{[%clk 0:00:28.2]} 30... Rh1+ {[%clk 0:00:33.3]} 31. Kf2 {[%clk 0:00:28.1]}
31... Qb2+ {[%clk 0:00:21.3]} 32. Rc2 {[%clk 0:00:23.1]} 32... Qe5 {[%clk
0:00:15.7]} 33. Rxh1 {[%clk 0:00:19.1]} 33... Rxh1 {[%clk 0:00:16.6]} 34. Rd2
{[%clk 0:00:06.4]} 34... Bxf3 {[%clk 0:00:13.5]} 35. Qf5+ {[%clk 0:00:04.6]}
35... Kd6 {[%clk 0:00:09.5]} 36. Qxe5+ {[%clk 0:00:03.9]} 36... Kxe5 {[%clk
0:00:10.4]} 37. gxf3 {[%clk 0:00:02.1]} 37... Rh2+ {[%clk 0:00:08.2]} 0-1

[Event "Early-Titled-Tuesday-Blitz-February-13-2024"]
[Site "Chess.com"]
[Date "2024.02.13"]
[Round "1"]
[White "GoValya"]
[Black "krasavetc"]
[Result "0-1"]
[WhiteElo "2280"]
[BlackElo "2631"]
[TimeControl "180+1"]
[EndTime "8:07:43 PST"]
[Termination "krasavetc won on time"]

1. d4 {[%clk 0:03:00.1]} 1... Nf6 {[%clk 0:02:58.9]} 2. g3 {[%clk 0:02:57.6]}
2... g6 {[%clk 0:02:57.9]} 3. Bg2 {[%clk 0:02:57.8]} 3... Bg7 {[%clk 0:02:58.6]}
4. c4 {[%clk 0:02:51.2]} 4... Kf8 {[%clk 0:02:58.5]} 5. Nc3 {[%clk 0:02:51.9]}
5... d6 {[%clk 0:02:34.4]} 6. h3 {[%clk 0:02:44.2]} 6... Kg8 {[%clk 0:02:33.6]}
7. Nf3 {[%clk 0:02:43.9]} 7... h6 {[%clk 0:02:33.9]} 8. O-O {[%clk 0:02:44.5]}
8... Kh7 {[%clk 0:02:34.3]} 9. e4 {[%clk 0:02:44.9]} 9... Re8 {[%clk 0:02:33.9]}
10. Re1 {[%clk 0:02:45.2]} 10... Nc6 {[%clk 0:02:30.1]} 11. a3 {[%clk 0:02:41]}
11... e5 {[%clk 0:02:29.4]} 12. Be3 {[%clk 0:02:36.5]} 12... Ng8 {[%clk
0:02:08.1]} 13. dxe5 {[%clk 0:02:18.7]} 13... Nxe5 {[%clk 0:02:04.3]} 14. Nxe5
{[%clk 0:02:10.8]} 14... dxe5 {[%clk 0:01:56.7]} 15. Qc2 {[%clk 0:01:59.3]}
15... c6 {[%clk 0:01:53.6]} 16. Rad1 {[%clk 0:01:59]} 16... Qe7 {[%clk
0:01:49.9]} 17. b4 {[%clk 0:01:55.1]} 17... a5 {[%clk 0:01:47.1]} 18. c5 {[%clk
0:01:49.3]} 18... Be6 {[%clk 0:01:45.8]} 19. Rd6 {[%clk 0:01:37.3]} 19... Nf6
{[%clk 0:01:17.9]} 20. Red1 {[%clk 0:01:25.4]} 20... axb4 {[%clk 0:01:13.3]} 21.
axb4 {[%clk 0:01:25.1]} 21... Red8 {[%clk 0:01:13.5]} 22. b5 {[%clk 0:01:05.5]}
22... Ne8 {[%clk 0:01:09.3]} 23. Rxd8 {[%clk 0:00:59.6]} 23... Rxd8 {[%clk
0:01:10.2]} 24. bxc6 {[%clk 0:00:59.7]} 24... bxc6 {[%clk 0:01:09.3]} 25. Qa4
{[%clk 0:00:54.2]} 25... Rxd1+ {[%clk 0:00:54.6]} 26. Nxd1 {[%clk 0:00:53.8]}
26... Qd7 {[%clk 0:00:53.9]} 27. Nb2 {[%clk 0:00:40.9]} 27... Nc7 {[%clk
0:00:49.5]} 28. Nc4 {[%clk 0:00:27.6]} 28... Nb5 {[%clk 0:00:46.7]} 29. Nb6
{[%clk 0:00:20.8]} 29... Qd8 {[%clk 0:00:39.6]} 30. Bf1 {[%clk 0:00:19.5]} 30...
Nc3 {[%clk 0:00:36.3]} 31. Qb4 {[%clk 0:00:19.5]} 31... Nd1 {[%clk 0:00:36.1]}
32. Qa4 {[%clk 0:00:16.9]} 32... Nxe3 {[%clk 0:00:33.6]} 33. fxe3 {[%clk
0:00:17.8]} 33... Qd2 {[%clk 0:00:33.3]} 34. Qxc6 {[%clk 0:00:16.4]} 34... Qxe3+
{[%clk 0:00:32.8]} 35. Kh2 {[%clk 0:00:16.5]} 35... Qf2+ {[%clk 0:00:30.5]} 36.
Bg2 {[%clk 0:00:16.9]} 36... h5 {[%clk 0:00:30.9]} 37. h4 {[%clk 0:00:11]} 37...
Bh6 {[%clk 0:00:26.8]} 38. Qb5 {[%clk 0:00:10]} 38... Be3 {[%clk 0:00:26.8]} 39.
Qf1 {[%clk 0:00:07.8]} 39... Qc2 {[%clk 0:00:19.4]} 40. Kh1 {[%clk 0:00:03.9]}
40... Bxc5 {[%clk 0:00:17.1]} 41. Na8 {[%clk 0:00:04.1]} 41... Bd4 {[%clk
0:00:16]} 42. Qe1 {[%clk 0:00:02.5]} 42... Qc6 {[%clk 0:00:15.2]} 43. Qe2 {[%clk
0:00:01.7]} 43... Qxa8 {[%clk 0:00:15]} 0-1

[Event "Early-Titled-Tuesday-Blitz-February-13-2024"]
[Site "Chess.com"]
[Date "2024.02.13"]
[Round "1"]
[White "remyrushbrooke"]
[Black "crazy_but_lazy"]
[Result "0-1"]
[WhiteElo "2245"]
[BlackElo "2610"]
[TimeControl "180+1"]
[EndTime "8:07:43 PST"]
[Termination "crazy_but_lazy won by resignation"]

1. Nf3 {[%clk 0:02:58.9]} 1... Nf6 {[%clk 0:02:57.9]} 2. g3 {[%clk 0:02:58.9]}
2... d5 {[%clk 0:02:55.7]} 3. Bg2 {[%clk 0:02:58.7]} 3... c6 {[%clk 0:02:53.8]}
4. c4 {[%clk 0:02:58.1]} 4... g6 {[%clk 0:02:52.4]} 5. cxd5 {[%clk 0:02:56.4]}
5... cxd5 {[%clk 0:02:52]} 6. d4 {[%clk 0:02:54.7]} 6... Bg7 {[%clk 0:02:51.3]}
7. Nc3 {[%clk 0:02:55]} 7... O-O {[%clk 0:02:49.9]} 8. O-O {[%clk 0:02:54.7]}
8... Ne4 {[%clk 0:02:46.1]} 9. Ne5 {[%clk 0:02:46.5]} 9... Nxc3 {[%clk
0:02:40.1]} 10. bxc3 {[%clk 0:02:47.4]} 10... Nc6 {[%clk 0:02:40.2]} 11. Nxc6
{[%clk 0:02:24.6]} 11... bxc6 {[%clk 0:02:39.1]} 12. Bf4 {[%clk 0:02:13.6]}
12... Qa5 {[%clk 0:02:34.2]} 13. Qd2 {[%clk 0:02:11.6]} 13... Bf5 {[%clk
0:02:17.4]} 14. Rfe1 {[%clk 0:01:48.1]} 14... Rac8 {[%clk 0:02:12]} 15. Rac1
{[%clk 0:01:05]} 15... Rfd8 {[%clk 0:02:02.6]} 16. e4 {[%clk 0:00:59.7]} 16...
dxe4 {[%clk 0:02:01.1]} 17. Bxe4 {[%clk 0:01:00.6]} 17... Bxe4 {[%clk
0:02:01.1]} 18. Rxe4 {[%clk 0:01:00.7]} 18... e6 {[%clk 0:01:57.4]} 19. Bg5
{[%clk 0:00:59.5]} 19... Rd7 {[%clk 0:01:47.7]} 20. Bh6 {[%clk 0:00:59.2]} 20...
Bh8 {[%clk 0:01:42.7]} 21. Qe3 {[%clk 0:00:56]} 21... Re8 {[%clk 0:00:51.6]} 22.
c4 {[%clk 0:00:52.4]} 22... Qxa2 {[%clk 0:00:47.1]} 23. d5 {[%clk 0:00:52.3]}
23... cxd5 {[%clk 0:00:46.5]} 24. cxd5 {[%clk 0:00:52]} 24... Qxd5 {[%clk
0:00:46.3]} 25. Rec4 {[%clk 0:00:45.5]} 25... Bd4 {[%clk 0:00:43.3]} 26. Qf4
{[%clk 0:00:33.4]} 26... Bg7 {[%clk 0:00:19.4]} 27. Rc8 {[%clk 0:00:24.6]} 27...
Rdd8 {[%clk 0:00:17.7]} 28. R8c7 {[%clk 0:00:23.8]} 28... e5 {[%clk 0:00:15.7]}
29. Qg5 {[%clk 0:00:19.3]} 29... Bxh6 {[%clk 0:00:14.3]} 30. Qxh6 {[%clk
0:00:20.2]} 30... e4 {[%clk 0:00:13]} 31. R1c3 {[%clk 0:00:13.2]} 31... a5
{[%clk 0:00:12.4]} 32. Qf4 {[%clk 0:00:12.6]} 32... Rd7 {[%clk 0:00:10.9]} 33.
R7c5 {[%clk 0:00:11.8]} 33... Qe6 {[%clk 0:00:10.7]} 34. Rxa5 {[%clk 0:00:10.1]}
34... Qh3 {[%clk 0:00:09.4]} 35. Rc1 {[%clk 0:00:08.6]} 35... Rde7 {[%clk
0:00:09.7]} 36. Ra3 {[%clk 0:00:07.6]} 36... Qd7 {[%clk 0:00:08.6]} 37. Re3
{[%clk 0:00:07.8]} 37... h5 {[%clk 0:00:08.8]} 38. Rce1 {[%clk 0:00:08]} 38...
Qd5 {[%clk 0:00:08.9]} 39. h4 {[%clk 0:00:08.1]} 39... Kg7 {[%clk 0:00:09.2]}
40. Kg2 {[%clk 0:00:07.9]} 40... Re6 {[%clk 0:00:07.8]} 41. Kg1 {[%clk
0:00:07.9]} 41... Qc6 {[%clk 0:00:08]} 42. Kg2 {[%clk 0:00:07.1]} 42... Qd5
{[%clk 0:00:08.5]} 43. R1e2 {[%clk 0:00:06.5]} 43... R8e7 {[%clk 0:00:09]} 44.
Qd6 {[%clk 0:00:06.3]} 44... Qxd6 {[%clk 0:00:09]} 0-1

[Event "Early-Titled-Tuesday-Blitz-February-13-2024"]
[Site "Chess.com"]
[Date "2024.02.13"]
[Round "1"]
[White "arnash_bauyrzhan"]
[Black "SlavenPastar"]
[Result "1-0"]
[WhiteElo "2282"]
[BlackElo "2605"]
[TimeControl "180+1"]
[EndTime "8:07:44 PST"]
[Termination "arnash_bauyrzhan won on time"]

1. e4 {[%clk 0:03:00.9]} 1... b6 {[%clk 0:02:57.6]} 2. d4 {[%clk 0:03:00.2]}
2... Bb7 {[%clk 0:02:57.3]} 3. Nc3 {[%clk 0:02:58.8]} 3... e6 {[%clk 0:02:56.7]}
4. Nf3 {[%clk 0:02:58.1]} 4... Bb4 {[%clk 0:02:55.6]} 5. Bd3 {[%clk 0:02:57.3]}
5... Nf6 {[%clk 0:02:55.4]} 6. Qe2 {[%clk 0:02:16.4]} 6... d5 {[%clk 0:02:54.9]}
7. e5 {[%clk 0:02:14.6]} 7... Ne4 {[%clk 0:02:54.7]} 8. Bd2 {[%clk 0:02:11.2]}
8... Nxd2 {[%clk 0:02:54.1]} 9. Nxd2 {[%clk 0:02:08.1]} 9... c5 {[%clk
0:02:52.6]} 10. Qg4 {[%clk 0:02:02.5]} 10... g6 {[%clk 0:02:36.8]} 11. a3 {[%clk
0:01:44.5]} 11... Bxc3 {[%clk 0:02:32.2]} 12. bxc3 {[%clk 0:01:44.8]} 12... Ba6
{[%clk 0:02:14.3]} 13. O-O {[%clk 0:01:43.2]} 13... O-O {[%clk 0:02:05]} 14. Nf3
{[%clk 0:01:37]} 14... Kg7 {[%clk 0:01:53.8]} 15. Rab1 {[%clk 0:01:20.4]} 15...
Qe7 {[%clk 0:01:35.5]} 16. h4 {[%clk 0:01:08]} 16... h5 {[%clk 0:01:32.2]} 17.
Qg3 {[%clk 0:01:02.9]} 17... c4 {[%clk 0:01:25.7]} 18. Be2 {[%clk 0:01:01.3]}
18... Qxa3 {[%clk 0:01:03.9]} 19. Ng5 {[%clk 0:01:01.1]} 19... Rh8 {[%clk
0:00:55]} 20. Rb4 {[%clk 0:00:54.6]} 20... Nd7 {[%clk 0:00:36.6]} 21. Qf4 {[%clk
0:00:41.4]} 21... Raf8 {[%clk 0:00:33.9]} 22. Nh3 {[%clk 0:00:21.2]} 22... Bc8
{[%clk 0:00:15.6]} 23. Qg3 {[%clk 0:00:13.6]} 23... a5 {[%clk 0:00:11.5]} 24.
Rbb1 {[%clk 0:00:08.7]} 24... Qe7 {[%clk 0:00:11.3]} 25. f4 {[%clk 0:00:08.5]}
25... Bb7 {[%clk 0:00:07.6]} 26. f5 {[%clk 0:00:06.7]} 26... exf5 {[%clk
0:00:08.3]} 27. Rxf5 {[%clk 0:00:06.8]} 27... Bc8 {[%clk 0:00:04.6]} 28. Rbf1
{[%clk 0:00:05.3]} 28... Nb8 {[%clk 0:00:03.2]} 29. Rxh5 {[%clk 0:00:05.4]}
29... Rxh5 {[%clk 0:00:03]} 30. Bxh5 {[%clk 0:00:05.6]} 30... Rh8 {[%clk
0:00:03.6]} 31. Bg4 {[%clk 0:00:05.2]} 31... Bxg4 {[%clk 0:00:03.2]} 32. Qxg4
{[%clk 0:00:06.1]} 32... Rxh4 {[%clk 0:00:02.8]} 33. Qg3 {[%clk 0:00:06.2]}
33... Rh5 {[%clk 0:00:02.8]} 34. e6 {[%clk 0:00:04.4]} 34... fxe6 {[%clk
0:00:01.6]} 35. Qxb8 {[%clk 0:00:04.4]} 1-0

[Event "Early-Titled-Tuesday-Blitz-February-13-2024"]
[Site "Chess.com"]
[Date "2024.02.13"]
[Round "1"]
[White "Alexander_Donchenko"]
[Black "tetrix83"]
[Result "1-0"]
[WhiteElo "2936"]
[BlackElo "2512"]
[TimeControl "180+1"]
[EndTime "8:07:47 PST"]
[Termination "Alexander_Donchenko won on time"]

1. Nf3 {[%clk 0:03:00.9]} 1... d5 {[%clk 0:02:58.8]} 2. g3 {[%clk 0:03:00.5]}
2... Nd7 {[%clk 0:02:58.8]} 3. Bg2 {[%clk 0:02:58.8]} 3... e5 {[%clk 0:02:58.7]}
4. O-O {[%clk 0:02:59]} 4... Bd6 {[%clk 0:02:57.2]} 5. c4 {[%clk 0:02:58.1]}
5... c6 {[%clk 0:02:55.7]} 6. cxd5 {[%clk 0:02:58.1]} 6... cxd5 {[%clk
0:02:55.6]} 7. Nc3 {[%clk 0:02:58.7]} 7... Ngf6 {[%clk 0:02:51.5]} 8. d3 {[%clk
0:02:53.5]} 8... O-O {[%clk 0:02:50.9]} 9. Bd2 {[%clk 0:02:49.2]} 9... a6 {[%clk
0:02:46.9]} 10. Rc1 {[%clk 0:02:49]} 10... b5 {[%clk 0:02:43.8]} 11. d4 {[%clk
0:02:40.1]} 11... e4 {[%clk 0:02:42.9]} 12. Ne1 {[%clk 0:02:40.7]} 12... h6
{[%clk 0:02:40.6]} 13. f3 {[%clk 0:02:37.7]} 13... Bb7 {[%clk 0:02:40]} 14. fxe4
{[%clk 0:02:31.6]} 14... dxe4 {[%clk 0:02:38.8]} 15. Nc2 {[%clk 0:02:26.8]}
15... Nb6 {[%clk 0:02:34.8]} 16. Bf4 {[%clk 0:02:21.5]} 16... Re8 {[%clk
0:02:32.2]} 17. e3 {[%clk 0:02:19.3]} 17... Nc4 {[%clk 0:02:29.6]} 18. b3 {[%clk
0:02:08.8]} 18... Nb6 {[%clk 0:02:29.4]} 19. Bh3 {[%clk 0:01:47.1]} 19... Nbd5
{[%clk 0:02:24.7]} 20. Nxd5 {[%clk 0:01:46.3]} 20... Nxd5 {[%clk 0:02:23.8]} 21.
Qh5 {[%clk 0:01:39.2]} 21... Bxf4 {[%clk 0:02:10.9]} 22. gxf4 {[%clk 0:01:38.8]}
22... Bc8 {[%clk 0:02:09.8]} 23. Bg2 {[%clk 0:01:36.1]} 23... Nf6 {[%clk
0:02:04.9]} 24. Qh4 {[%clk 0:01:32.5]} 24... Bf5 {[%clk 0:02:02.2]} 25. Nb4
{[%clk 0:01:31.4]} 25... Rc8 {[%clk 0:02:00.5]} 26. Nxa6 {[%clk 0:01:07.2]}
26... Qa5 {[%clk 0:01:44.5]} 27. Nc5 {[%clk 0:01:05.6]} 27... Qxa2 {[%clk
0:01:41.2]} 28. Ra1 {[%clk 0:01:05.2]} 28... Qd2 {[%clk 0:01:39.8]} 29. Qe1
{[%clk 0:01:03.6]} 29... Qxe1 {[%clk 0:01:34.9]} 30. Rfxe1 {[%clk 0:01:04.5]}
30... Ra8 {[%clk 0:01:31.9]} 31. h3 {[%clk 0:01:02.2]} 31... b4 {[%clk
0:01:24.6]} 32. Kf2 {[%clk 0:01:02.1]} 32... Reb8 {[%clk 0:01:21.9]} 33. Ke2
{[%clk 0:00:58.2]} 33... Kf8 {[%clk 0:01:21.2]} 34. Kd2 {[%clk 0:00:57.8]} 34...
Ke7 {[%clk 0:01:21.1]} 35. Ra4 {[%clk 0:00:57.5]} 35... Rxa4 {[%clk 0:01:20]}
36. bxa4 {[%clk 0:00:58.4]} 36... b3 {[%clk 0:01:06.4]} 37. Rb1 {[%clk 0:00:58]}
37... b2 {[%clk 0:01:03.9]} 38. a5 {[%clk 0:00:57.9]} 38... Be6 {[%clk
0:00:52.2]} 39. a6 {[%clk 0:00:50.3]} 39... Nd7 {[%clk 0:00:22.8]} 40. Bxe4
{[%clk 0:00:44.1]} 40... Nxc5 {[%clk 0:00:19.6]} 41. dxc5 {[%clk 0:00:45]} 41...
Ba2 {[%clk 0:00:18.8]} 42. a7 {[%clk 0:00:13.6]} 42... Rd8+ {[%clk 0:00:16.3]}
43. Kc2 {[%clk 0:00:14.1]} 43... Bxb1+ {[%clk 0:00:16.4]} 44. Kxb1 {[%clk
0:00:15]} 1-0